[Event "*** Titled Tuesday 3|2 Blitz"]
[Site "Chess.com"]
[Date "2015.10.06"]
[Round "2"]
[White "3f32"]
[Black "chesswooog"]
[Result "1-0"]
[WhiteElo "2280"]
[BlackElo "2174"]
[TimeControl "180+2"]
[EndTime "11:23:28 PDT"]
[Termination "3f32 won by checkmate"]

1. d4 {[%clk 0:03:01.9]} 1... Nf6 {[%clk 0:03:00.1]} 2. c4 {[%clk 0:03:02.1]}
2... e6 {[%clk 0:03:00.8]} 3. g3 {[%clk 0:03:01.5]} 3... Bb4+ {[%clk 0:03:01.8]}
4. Nd2 {[%clk 0:03:01.2]} 4... O-O {[%clk 0:03:01]} 5. Bg2 {[%clk 0:03:02.1]}
5... d5 {[%clk 0:03:01.5]} 6. Nf3 {[%clk 0:03:02.3]} 6... Nbd7 {[%clk
0:02:59.6]} 7. O-O {[%clk 0:03:03.1]} 7... c5 {[%clk 0:02:47.5]} 8. cxd5 {[%clk
0:02:54.8]} 8... Nxd5 {[%clk 0:02:45.2]} 9. a3 {[%clk 0:02:50.3]} 9... Bxd2
{[%clk 0:02:44.4]} 10. Qxd2 {[%clk 0:02:51.1]} 10... cxd4 {[%clk 0:02:45.3]} 11.
Nxd4 {[%clk 0:02:48]} 11... N7f6 {[%clk 0:02:41.4]} 12. b4 {[%clk 0:02:45.8]}
12... a5 {[%clk 0:02:36.5]} 13. Bb2 {[%clk 0:02:38.8]} 13... axb4 {[%clk
0:02:11.5]} 14. axb4 {[%clk 0:02:40.7]} 14... Rxa1 {[%clk 0:02:11.9]} 15. Rxa1
{[%clk 0:02:39.5]} 15... Qb6 {[%clk 0:02:12.5]} 16. b5 {[%clk 0:02:38]} 16...
Rd8 {[%clk 0:02:11.8]} 17. Qc2 {[%clk 0:02:33.2]} 17... e5 {[%clk 0:02:01.6]}
18. Nb3 {[%clk 0:02:25.8]} 18... Qxb5 {[%clk 0:01:57.5]} 19. Bxe5 {[%clk
0:02:22.4]} 19... Be6 {[%clk 0:01:58.1]} 20. Rd1 {[%clk 0:02:19.3]} 20... Rc8
{[%clk 0:01:56]} 21. Qb2 {[%clk 0:02:06.3]} 21... Nb6 {[%clk 0:01:40.7]} 22.
Bxf6 {[%clk 0:02:02.7]} 22... gxf6 {[%clk 0:01:40.7]} 23. Rb1 {[%clk 0:01:52]}
23... Na4 {[%clk 0:01:36.9]} 24. Qa3 {[%clk 0:01:18.4]} 24... Rc3 {[%clk
0:01:34.7]} 25. Nd2 {[%clk 0:01:12.2]} 25... Rxa3 {[%clk 0:01:15.6]} 26. Rxb5
{[%clk 0:01:12.2]} 26... Ra2 {[%clk 0:01:16.8]} 27. Nf1 {[%clk 0:01:10.1]} 27...
Rxe2 {[%clk 0:01:16.7]} 28. Rxb7 {[%clk 0:01:09.8]} 28... Nc3 {[%clk 0:01:12.7]}
29. Rc7 {[%clk 0:01:07]} 29... Nd1 {[%clk 0:01:10.7]} 30. Bf3 {[%clk 0:01:05.4]}
30... Rxf2 {[%clk 0:00:46.8]} 31. Bxd1 {[%clk 0:01:05.4]} 31... Ra2 {[%clk
0:00:44.6]} 32. Rc2 {[%clk 0:01:05.6]} 32... Ra1 {[%clk 0:00:44.5]} 33. Be2
{[%clk 0:01:06]} 33... f5 {[%clk 0:00:43.8]} 34. Kf2 {[%clk 0:01:07.2]} 34...
Kg7 {[%clk 0:00:43]} 35. Ke3 {[%clk 0:01:08.6]} 35... Kf6 {[%clk 0:00:43.9]} 36.
Nd2 {[%clk 0:01:05.5]} 36... Rh1 {[%clk 0:00:43.5]} 37. Nf3 {[%clk 0:01:05]}
37... h5 {[%clk 0:00:40.3]} 38. Bd3 {[%clk 0:00:58.9]} 38... Rd1 {[%clk
0:00:35.2]} 39. Nh4 {[%clk 0:00:58]} 39... Re1+ {[%clk 0:00:25]} 40. Kd4 {[%clk
0:00:56.8]} 40... Rd1 {[%clk 0:00:24.3]} 41. Rf2 {[%clk 0:00:57.4]} 41... Bd7
{[%clk 0:00:15.7]} 42. Kc3 {[%clk 0:00:55.6]} 42... Rc1+ {[%clk 0:00:14.2]} 43.
Kd2 {[%clk 0:00:55.6]} 43... Ra1 {[%clk 0:00:15.1]} 44. Bxf5 {[%clk 0:00:55.1]}
44... Bxf5 {[%clk 0:00:12.6]} 45. Rxf5+ {[%clk 0:00:57]} 45... Ke6 {[%clk
0:00:14.2]} 46. Rxh5 {[%clk 0:00:57.8]} 46... Ra2+ {[%clk 0:00:15]} 47. Ke3
{[%clk 0:00:59.3]} 47... Rxh2 {[%clk 0:00:16.7]} 48. Kf4 {[%clk 0:01:00.3]}
48... Rf2+ {[%clk 0:00:17.6]} 49. Nf3 {[%clk 0:01:01.3]} 49... f6 {[%clk
0:00:17.3]} 50. Ra5 {[%clk 0:01:01.5]} 50... Kf7 {[%clk 0:00:17.5]} 51. g4
{[%clk 0:01:02]} 51... Kg6 {[%clk 0:00:18.3]} 52. Ra6 {[%clk 0:01:02]} 52... Kf7
{[%clk 0:00:19.2]} 53. Kg3 {[%clk 0:01:02.4]} 53... Rb2 {[%clk 0:00:19.4]} 54.
Nh4 {[%clk 0:01:02.6]} 54... Rb3+ {[%clk 0:00:18.8]} 55. Nf3 {[%clk 0:01:04.2]}
55... Rc3 {[%clk 0:00:19.4]} 56. Rd6 {[%clk 0:00:59.3]} 56... Ke7 {[%clk
0:00:18.1]} 57. Rd4 {[%clk 0:00:59.8]} 57... Kf7 {[%clk 0:00:19.3]} 58. Rf4
{[%clk 0:01:01.2]} 58... Kg6 {[%clk 0:00:20.6]} 59. Kh4 {[%clk 0:01:02.2]} 59...
Rc1 {[%clk 0:00:21]} 60. Nd4 {[%clk 0:00:59.9]} 60... Rh1+ {[%clk 0:00:21.2]}
61. Kg3 {[%clk 0:01:01.4]} 61... Rg1+ {[%clk 0:00:23.1]} 62. Kf2 {[%clk
0:01:02.1]} 62... Ra1 {[%clk 0:00:22.7]} 63. Nf3 {[%clk 0:01:01.8]} 63... Ra2+
{[%clk 0:00:23]} 64. Ke3 {[%clk 0:01:02.5]} 64... Ra3+ {[%clk 0:00:24]} 65. Kf2
{[%clk 0:01:03.5]} 65... Ra2+ {[%clk 0:00:25.4]} 66. Kg3 {[%clk 0:01:05.1]}
66... Ra3 {[%clk 0:00:27]} 67. Rb4 {[%clk 0:01:05.8]} 67... Rc3 {[%clk
0:00:26.6]} 68. Kf4 {[%clk 0:01:06.9]} 68... Ra3 {[%clk 0:00:26.3]} 69. Rb6
{[%clk 0:01:07.9]} 69... Ra4+ {[%clk 0:00:26.8]} 70. Kg3 {[%clk 0:01:08.3]}
70... Kf7 {[%clk 0:00:26.7]} 71. Nd2 {[%clk 0:01:05.8]} 71... Ra3+ {[%clk
0:00:25.5]} 72. Kf4 {[%clk 0:01:06.4]} 72... Ra4+ {[%clk 0:00:27]} 73. Ne4
{[%clk 0:01:07.5]} 73... Kg7 {[%clk 0:00:25.8]} 74. Rc6 {[%clk 0:01:03.2]} 74...
Rb4 {[%clk 0:00:24.4]} 75. Kf5 {[%clk 0:01:02.4]} 75... Rb5+ {[%clk 0:00:25.7]}
76. Rc5 {[%clk 0:01:03.4]} 76... Rb1 {[%clk 0:00:20.5]} 77. Rc7+ {[%clk
0:01:03.8]} 77... Kf8 {[%clk 0:00:21.8]} 78. Kxf6 {[%clk 0:01:01.4]} 78... Rb6+
{[%clk 0:00:18.6]} 79. Kf5 {[%clk 0:01:00.6]} 79... Rb5+ {[%clk 0:00:19.4]} 80.
Kg6 {[%clk 0:01:00.9]} 80... Rb6+ {[%clk 0:00:20.2]} 81. Nf6 {[%clk 0:01:01.5]}
81... Rb5 {[%clk 0:00:16.1]} 82. Rf7# {[%clk 0:01:01.3]} 1-0

[Event "*** Titled Tuesday 3|2 Blitz"]
[Site "Chess.com"]
[Date "2015.10.06"]
[Round "2"]
[White "HubertKnott"]
[Black "eugeniusjr"]
[Result "1/2-1/2"]
[WhiteElo "2023"]
[BlackElo "2002"]
[TimeControl "180+2"]
[EndTime "11:23:53 PDT"]
[Termination "Game drawn by agreement"]

1. d4 {[%clk 0:03:01.9]} 1... Nf6 {[%clk 0:03:00.2]} 2. Nf3 {[%clk 0:03:02.7]}
2... g6 {[%clk 0:03:01.7]} 3. c4 {[%clk 0:03:03.8]} 3... Bg7 {[%clk 0:03:02.9]}
4. Nc3 {[%clk 0:03:05]} 4... d5 {[%clk 0:03:04.4]} 5. e3 {[%clk 0:03:01.6]} 5...
O-O {[%clk 0:03:04.6]} 6. Be2 {[%clk 0:03:01.2]} 6... c5 {[%clk 0:03:03.7]} 7.
O-O {[%clk 0:02:57.5]} 7... dxc4 {[%clk 0:03:02.3]} 8. Bxc4 {[%clk 0:02:57.6]}
8... Nc6 {[%clk 0:03:03.8]} 9. dxc5 {[%clk 0:02:57.5]} 9... Qa5 {[%clk
0:03:00.7]} 10. Qe2 {[%clk 0:02:48.4]} 10... Qxc5 {[%clk 0:02:54.5]} 11. h3
{[%clk 0:02:43.4]} 11... a6 {[%clk 0:02:50.4]} 12. a3 {[%clk 0:02:42.7]} 12...
b5 {[%clk 0:02:50.5]} 13. Bb3 {[%clk 0:02:36.3]} 13... Bb7 {[%clk 0:02:33]} 14.
Rd1 {[%clk 0:02:35.7]} 14... Rad8 {[%clk 0:02:26.1]} 15. Bd2 {[%clk 0:02:36.3]}
15... e5 {[%clk 0:02:18.3]} 16. e4 {[%clk 0:02:08.6]} 16... Nd4 {[%clk
0:02:07.3]} 17. Nxd4 {[%clk 0:02:00.5]} 17... exd4 {[%clk 0:02:09.2]} 18. Nd5
{[%clk 0:01:51.5]} 18... Bxd5 {[%clk 0:01:45.5]} 19. exd5 {[%clk 0:01:41.9]}
19... Nxd5 {[%clk 0:01:39.3]} 20. Rac1 {[%clk 0:01:38.4]} 20... Qd6 {[%clk
0:01:26.8]} 21. Qf3 {[%clk 0:01:23.1]} 21... h6 {[%clk 0:01:10.1]} 22. Rc2
{[%clk 0:01:12.9]} 22... Kh7 {[%clk 0:00:57.2]} 23. Rdc1 {[%clk 0:01:13.6]}
23... Ne7 {[%clk 0:00:41.8]} 24. Bb4 {[%clk 0:01:08.7]} 24... Qf6 {[%clk
0:00:35.3]} 25. Qb7 {[%clk 0:00:56.2]} 25... d3 {[%clk 0:00:19.7]} 26. Bxe7
{[%clk 0:00:30.6]} 26... dxc2 {[%clk 0:00:20.2]} 27. Bxf6 {[%clk 0:00:27.6]}
27... Bxf6 {[%clk 0:00:18.2]} 28. Bxc2 {[%clk 0:00:21.2]} 28... Bxb2 {[%clk
0:00:16.9]} 29. Rb1 {[%clk 0:00:21.9]} 29... Bxa3 {[%clk 0:00:16.7]} 30. Qxa6
{[%clk 0:00:22.4]} 30... b4 {[%clk 0:00:16.1]} 31. Qa4 {[%clk 0:00:22.8]} 31...
Rd2 {[%clk 0:00:15.1]} 32. Qb3 {[%clk 0:00:20.1]} 32... Kg7 {[%clk 0:00:10.4]}
33. Rd1 {[%clk 0:00:20.9]} 33... Re2 {[%clk 0:00:08.4]} 34. Kf1 {[%clk
0:00:18.6]} 34... Rfe8 {[%clk 0:00:05.5]} 35. Bd3 {[%clk 0:00:18.9]} 35... R2e7
{[%clk 0:00:05.9]} 36. Qb1 {[%clk 0:00:17]} 36... Kg8 {[%clk 0:00:04.6]} 37. Qb3
{[%clk 0:00:17.5]} 37... Kg7 {[%clk 0:00:05.3]} 38. Bc4 {[%clk 0:00:18.4]} 38...
Rc8 {[%clk 0:00:04.8]} 39. g3 {[%clk 0:00:18.8]} 39... Rce8 {[%clk 0:00:05.6]}
40. Kg2 {[%clk 0:00:19.1]} 40... Rc7 {[%clk 0:00:06.2]} 41. Rd2 {[%clk
0:00:19.1]} 41... Rec8 {[%clk 0:00:07.3]} 42. Rc2 {[%clk 0:00:20.2]} 42... Kf8
{[%clk 0:00:06.8]} 43. Qd3 {[%clk 0:00:19.5]} 43... Kg7 {[%clk 0:00:07.1]} 44.
Qb3 {[%clk 0:00:18.6]} 44... Kf8 {[%clk 0:00:07.7]} 45. Bd3 {[%clk 0:00:19.4]}
45... Rxc2 {[%clk 0:00:06.9]} 46. Bxc2 {[%clk 0:00:20.3]} 46... Rc3 {[%clk
0:00:07.6]} 47. Qa4 {[%clk 0:00:19.5]} 47... Rc8 {[%clk 0:00:06.1]} 48. Bb3
{[%clk 0:00:18.1]} 48... Kg7 {[%clk 0:00:06.8]} 49. Qd7 {[%clk 0:00:17.9]} 49...
Rf8 {[%clk 0:00:07]} 50. f4 {[%clk 0:00:17.2]} 50... Kg8 {[%clk 0:00:07]} 51.
Kf3 {[%clk 0:00:17.8]} 51... Bb2 {[%clk 0:00:07.5]} 52. Ke4 {[%clk 0:00:18.1]}
52... Bc3 {[%clk 0:00:08.5]} 53. f5 {[%clk 0:00:18.7]} 53... g5 {[%clk
0:00:09.1]} 54. Kf3 {[%clk 0:00:16]} 54... Kg7 {[%clk 0:00:09.7]} 55. Kg4 {[%clk
0:00:16.9]} 55... Kg8 {[%clk 0:00:10.4]} 56. Kh5 {[%clk 0:00:17.6]} 56... Kg7
{[%clk 0:00:11.5]} 57. Qe7 {[%clk 0:00:17.2]} 57... Bf6 {[%clk 0:00:12.2]} 58.
Qc7 {[%clk 0:00:16.6]} 58... Bc3 {[%clk 0:00:12.1]} 59. Qc4 {[%clk 0:00:15.6]}
59... Kh7 {[%clk 0:00:10.9]} 60. Qc7 {[%clk 0:00:15.1]} 60... Kg7 {[%clk
0:00:11.7]} 61. h4 {[%clk 0:00:16.5]} 61... gxh4 {[%clk 0:00:10.8]} 62. Kxh4
{[%clk 0:00:17.4]} 62... Bf6+ {[%clk 0:00:10.7]} 63. Kg4 {[%clk 0:00:17.2]}
63... Bc3 {[%clk 0:00:10.3]} 64. Kf4 {[%clk 0:00:16.2]} 64... Bf6 {[%clk
0:00:10.5]} 65. g4 {[%clk 0:00:16.7]} 65... Bg5+ {[%clk 0:00:09.9]} 66. Ke4
{[%clk 0:00:16.7]} 66... Bf6 {[%clk 0:00:10.6]} 67. Qc4 {[%clk 0:00:15.8]} 67...
Bc3 {[%clk 0:00:09.5]} 68. Kd3 {[%clk 0:00:15.5]} 68... Bf6 {[%clk 0:00:10.1]}
69. Ke3 {[%clk 0:00:15.5]} 69... Re8+ {[%clk 0:00:10.4]} 70. Kd3 {[%clk
0:00:16.1]} 70... Rd8+ {[%clk 0:00:11.4]} 71. Ke2 {[%clk 0:00:16.9]} 71... Re8+
{[%clk 0:00:12.2]} 72. Kf3 {[%clk 0:00:17.7]} 72... Rf8 {[%clk 0:00:13.3]} 73.
Qxb4 {[%clk 0:00:18]} 73... Bg5 {[%clk 0:00:14]} 74. Qd4+ {[%clk 0:00:17.3]}
74... Bf6 {[%clk 0:00:15.1]} 75. Qd5 {[%clk 0:00:17.9]} 75... Bg5 {[%clk
0:00:15.5]} 76. Ke4 {[%clk 0:00:17.1]} 76... Bf6 {[%clk 0:00:16.2]} 77. Kd3
{[%clk 0:00:16.1]} 77... Rd8 {[%clk 0:00:16.9]} 78. Kc4 {[%clk 0:00:16.6]} 78...
Rxd5 {[%clk 0:00:17.3]} 79. Kxd5 {[%clk 0:00:17.9]} 79... Bd8 {[%clk 0:00:17.1]}
80. Ke4 {[%clk 0:00:19.8]} 80... Kf6 {[%clk 0:00:17.9]} 1/2-1/2

[Event "*** Titled Tuesday 3|2 Blitz"]
[Site "Chess.com"]
[Date "2015.10.06"]
[Round "2"]
[White "Baggio95"]
[Black "rikyshi"]
[Result "1/2-1/2"]
[WhiteElo "2385"]
[BlackElo "2143"]
[TimeControl "180+2"]
[EndTime "11:24:23 PDT"]
[Termination "Game drawn by agreement"]

1. e4 {[%clk 0:03:01.9]} 1... e6 {[%clk 0:03:00.8]} 2. Qe2 {[%clk 0:03:02.1]}
2... c5 {[%clk 0:02:59.5]} 3. Nf3 {[%clk 0:03:00.9]} 3... b6 {[%clk 0:03:00.7]}
4. g3 {[%clk 0:03:01.5]} 4... Nc6 {[%clk 0:03:00.3]} 5. Bg2 {[%clk 0:03:02.1]}
5... g6 {[%clk 0:02:57.8]} 6. O-O {[%clk 0:02:58.3]} 6... Bg7 {[%clk 0:02:58.9]}
7. c3 {[%clk 0:02:58.8]} 7... Nge7 {[%clk 0:02:58.2]} 8. Rd1 {[%clk 0:02:57.5]}
8... d6 {[%clk 0:02:55.9]} 9. d4 {[%clk 0:02:58.1]} 9... O-O {[%clk 0:02:54.4]}
10. Na3 {[%clk 0:02:52.3]} 10... cxd4 {[%clk 0:02:51.4]} 11. cxd4 {[%clk
0:02:52.9]} 11... Bb7 {[%clk 0:02:52.5]} 12. Bg5 {[%clk 0:02:53]} 12... h6
{[%clk 0:02:52.9]} 13. Be3 {[%clk 0:02:53.4]} 13... Rc8 {[%clk 0:02:52.3]} 14.
Nb5 {[%clk 0:02:50.1]} 14... a6 {[%clk 0:02:51.7]} 15. Nc3 {[%clk 0:02:50.7]}
15... d5 {[%clk 0:02:49.6]} 16. e5 {[%clk 0:02:46.6]} 16... Nf5 {[%clk
0:02:50.1]} 17. Rac1 {[%clk 0:02:34]} 17... b5 {[%clk 0:02:49.9]} 18. Qd2 {[%clk
0:02:29]} 18... Kh7 {[%clk 0:02:47.9]} 19. Ne2 {[%clk 0:02:26.6]} 19... Nce7
{[%clk 0:02:44.1]} 20. g4 {[%clk 0:02:20.8]} 20... Nxe3 {[%clk 0:02:43.9]} 21.
Qxe3 {[%clk 0:02:21.1]} 21... Rc4 {[%clk 0:02:45]} 22. b3 {[%clk 0:02:20.2]}
22... Rxc1 {[%clk 0:02:45.3]} 23. Rxc1 {[%clk 0:02:16.6]} 23... Qa5 {[%clk
0:02:37.4]} 24. Qd2 {[%clk 0:02:15]} 24... b4 {[%clk 0:02:27.5]} 25. Rc5 {[%clk
0:02:09.7]} 25... Qb6 {[%clk 0:02:28.2]} 26. Nf4 {[%clk 0:02:09.4]} 26... Rc8
{[%clk 0:02:27.8]} 27. Nd3 {[%clk 0:02:09]} 27... a5 {[%clk 0:02:27.2]} 28. Qc2
{[%clk 0:02:03.1]} 28... Ba6 {[%clk 0:02:21.9]} 29. Rxc8 {[%clk 0:01:58.3]}
29... Bxd3 {[%clk 0:02:20.6]} 30. Qxd3 {[%clk 0:01:49.5]} 30... Nxc8 {[%clk
0:02:20.3]} 31. Qc2 {[%clk 0:01:44.6]} 31... Na7 {[%clk 0:02:18.8]} 32. h4
{[%clk 0:01:43.9]} 32... Nb5 {[%clk 0:02:17.7]} 33. Qd3 {[%clk 0:01:43.5]} 33...
Kg8 {[%clk 0:02:05.8]} 34. Bf1 {[%clk 0:01:36.5]} 34... Nc3 {[%clk 0:02:05.9]}
35. a4 {[%clk 0:01:31.8]} 35... Qc7 {[%clk 0:01:24]} 36. Nd2 {[%clk 0:01:27]}
36... Qe7 {[%clk 0:01:19.6]} 37. Qg3 {[%clk 0:01:24.6]} 37... Qa7 {[%clk
0:01:01.6]} 38. Qd3 {[%clk 0:01:21.6]} 38... Qe7 {[%clk 0:01:02.1]} 39. Qg3
{[%clk 0:01:09.4]} 39... Qa7 {[%clk 0:01:00.2]} 40. Qf4 {[%clk 0:01:09.4]} 40...
Bf8 {[%clk 0:00:23.4]} 41. h5 {[%clk 0:01:01.4]} 41... g5 {[%clk 0:00:22]} 42.
Qe3 {[%clk 0:01:01.3]} 42... Qb7 {[%clk 0:00:18.9]} 43. Bd3 {[%clk 0:00:58.1]}
43... Nd1 {[%clk 0:00:16.9]} 44. Qe1 {[%clk 0:00:54.3]} 44... Nc3 {[%clk
0:00:17.5]} 45. Bc2 {[%clk 0:00:51.9]} 45... Qa6 {[%clk 0:00:16.9]} 46. Kh2
{[%clk 0:00:42.8]} 46... Qe2 {[%clk 0:00:16.4]} 47. Qxe2 {[%clk 0:00:40.1]}
47... Nxe2 {[%clk 0:00:18.3]} 48. Nf3 {[%clk 0:00:38.7]} 48... Nf4 {[%clk
0:00:15.3]} 49. Kg1 {[%clk 0:00:38.5]} 49... Be7 {[%clk 0:00:16.3]} 50. Kf1
{[%clk 0:00:38.7]} 50... Bd8 {[%clk 0:00:16.6]} 51. Ke1 {[%clk 0:00:38.1]} 51...
Ng2+ {[%clk 0:00:17.5]} 52. Kd2 {[%clk 0:00:38.5]} 52... Nf4 {[%clk 0:00:14.8]}
53. Bd3 {[%clk 0:00:38.4]} 53... Kf8 {[%clk 0:00:15.6]} 54. Bb5 {[%clk
0:00:38.1]} 54... Ke7 {[%clk 0:00:14.6]} 55. Ke3 {[%clk 0:00:37.8]} 55... Kf8
{[%clk 0:00:14.6]} 56. Ne1 {[%clk 0:00:37.8]} 56... Kg7 {[%clk 0:00:12.8]} 57.
Nc2 {[%clk 0:00:33.2]} 57... Kf8 {[%clk 0:00:11.8]} 58. Kd2 {[%clk 0:00:32.3]}
58... Bb6 {[%clk 0:00:12.2]} 59. Bf1 {[%clk 0:00:30]} 59... Ke7 {[%clk 0:00:12]}
60. Bb5 {[%clk 0:00:30.6]} 60... Kf8 {[%clk 0:00:13.1]} 61. Bf1 {[%clk
0:00:28.9]} 61... Ke7 {[%clk 0:00:14.3]} 62. Ke3 {[%clk 0:00:30.3]} 62... Kf8
{[%clk 0:00:12.6]} 63. Ne1 {[%clk 0:00:30.9]} 63... Ke7 {[%clk 0:00:13.3]} 64.
Nd3 {[%clk 0:00:27]} 64... Nxd3 {[%clk 0:00:14.3]} 65. Bxd3 {[%clk 0:00:28.2]}
65... Bd8 {[%clk 0:00:13.2]} 66. f4 {[%clk 0:00:28.4]} 66... Kf8 {[%clk
0:00:12.4]} 67. f5 {[%clk 0:00:28.1]} 67... Ke7 {[%clk 0:00:12.6]} 68. Ba6
{[%clk 0:00:28.7]} 68... Kf8 {[%clk 0:00:12.5]} 69. Bc8 {[%clk 0:00:29]} 69...
Ke7 {[%clk 0:00:12]} 70. Kd3 {[%clk 0:00:29.5]} 70... Bb6 {[%clk 0:00:12.4]} 71.
Bb7 {[%clk 0:00:27.9]} 71... Ba7 {[%clk 0:00:12.3]} 72. Bc6 {[%clk 0:00:26.8]}
72... Bb6 {[%clk 0:00:12.9]} 73. Bb7 {[%clk 0:00:27.5]} 73... Ba7 {[%clk
0:00:14.1]} 74. Bc8 {[%clk 0:00:28]} 74... Bb6 {[%clk 0:00:14.6]} 75. f6+ {[%clk
0:00:28.6]} 75... Ke8 {[%clk 0:00:14.8]} 76. Bb7 {[%clk 0:00:29.1]} 76... Kf8
{[%clk 0:00:15.7]} 77. Bc6 {[%clk 0:00:29.7]} 77... Ba7 {[%clk 0:00:16.8]} 78.
Bb5 {[%clk 0:00:27.1]} 1/2-1/2

[Event "*** Titled Tuesday 3|2 Blitz"]
[Site "Chess.com"]
[Date "2015.10.06"]
[Round "3"]
[White "FMCouch"]
[Black "Moltini"]
[Result "1-0"]
[WhiteElo "2041"]
[BlackElo "2149"]
[TimeControl "180+2"]
[EndTime "11:32:46 PDT"]
[Termination "FMCouch won by checkmate"]

1. e4 {[%clk 0:03:01.9]} 1... c5 {[%clk 0:03:00.3]} 2. Nf3 {[%clk 0:03:01.4]}
2... d6 {[%clk 0:03:01.7]} 3. d4 {[%clk 0:03:01.3]} 3... cxd4 {[%clk 0:03:03.1]}
4. Nxd4 {[%clk 0:03:03.2]} 4... Nf6 {[%clk 0:03:04.6]} 5. Nc3 {[%clk 0:03:04.7]}
5... a6 {[%clk 0:03:06.1]} 6. Bg5 {[%clk 0:03:05.8]} 6... e6 {[%clk 0:03:06.9]}
7. f4 {[%clk 0:03:07]} 7... Nbd7 {[%clk 0:03:06.9]} 8. Qe2 {[%clk 0:03:07.2]}
8... Qc7 {[%clk 0:03:06.6]} 9. O-O-O {[%clk 0:03:08.3]} 9... Be7 {[%clk
0:03:05.7]} 10. g4 {[%clk 0:03:08.1]} 10... b5 {[%clk 0:03:05.6]} 11. Bg2 {[%clk
0:03:07.5]} 11... Bb7 {[%clk 0:03:06.5]} 12. h4 {[%clk 0:03:03.2]} 12... O-O-O
{[%clk 0:03:05.7]} 13. e5 {[%clk 0:02:55]} 13... dxe5 {[%clk 0:02:59.5]} 14.
Bxb7+ {[%clk 0:02:53]} 14... Qxb7 {[%clk 0:02:46.3]} 15. fxe5 {[%clk 0:02:53.1]}
15... Ng8 {[%clk 0:02:47.5]} 16. Bf4 {[%clk 0:02:47.8]} 16... Nc5 {[%clk
0:02:42.6]} 17. Bg3 {[%clk 0:02:14.3]} 17... Rxd4 {[%clk 0:02:40]} 18. Rxd4
{[%clk 0:02:12.3]} 18... Qxh1+ {[%clk 0:02:40.6]} 19. Rd1 {[%clk 0:02:14.1]}
19... Qc6 {[%clk 0:02:40.4]} 20. b4 {[%clk 0:02:03.6]} 20... Nb7 {[%clk
0:02:35.3]} 21. Ne4 {[%clk 0:02:00]} 21... Nh6 {[%clk 0:02:31.9]} 22. Nd6+
{[%clk 0:01:54.8]} 22... Bxd6 {[%clk 0:02:33]} 23. exd6 {[%clk 0:01:56.7]} 23...
Rd8 {[%clk 0:02:34.1]} 24. Qe5 {[%clk 0:01:50.9]} 24... Nxg4 {[%clk 0:02:34]}
25. d7+ {[%clk 0:01:51.1]} 25... Rxd7 {[%clk 0:02:22.3]} 26. Qb8# {[%clk
0:01:51.4]} 1-0

[Event "*** Titled Tuesday 3|2 Blitz"]
[Site "Chess.com"]
[Date "2015.10.06"]
[Round "3"]
[White "Konavets"]
[Black "dabee"]
[Result "1-0"]
[WhiteElo "2491"]
[BlackElo "2365"]
[TimeControl "180+2"]
[EndTime "11:33:26 PDT"]
[Termination "Konavets won by resignation"]

1. b4 {[%clk 0:03:01.9]} 1... e6 {[%clk 0:02:56.2]} 2. Bb2 {[%clk 0:03:02.6]}
2... Nf6 {[%clk 0:02:56.2]} 3. a3 {[%clk 0:03:04.1]} 3... a5 {[%clk 0:02:56.9]}
4. b5 {[%clk 0:02:49.1]} 4... c5 {[%clk 0:02:56.3]} 5. e3 {[%clk 0:02:50.3]}
5... b6 {[%clk 0:02:56]} 6. Nf3 {[%clk 0:02:49.7]} 6... Bb7 {[%clk 0:02:56]} 7.
c4 {[%clk 0:02:49.4]} 7... d5 {[%clk 0:02:55.6]} 8. d4 {[%clk 0:02:50.3]} 8...
Nbd7 {[%clk 0:02:54.8]} 9. Nc3 {[%clk 0:02:51.1]} 9... cxd4 {[%clk 0:02:53.3]}
10. exd4 {[%clk 0:02:53]} 10... dxc4 {[%clk 0:02:49.8]} 11. Bxc4 {[%clk
0:02:54.9]} 11... Rc8 {[%clk 0:02:43.5]} 12. Ba2 {[%clk 0:02:50.7]} 12... Be7
{[%clk 0:02:44.1]} 13. O-O {[%clk 0:02:48.6]} 13... O-O {[%clk 0:02:44]} 14. Re1
{[%clk 0:02:50.1]} 14... Re8 {[%clk 0:02:40.6]} 15. Ng5 {[%clk 0:02:50]} 15...
Nf8 {[%clk 0:02:35.2]} 16. Qd3 {[%clk 0:02:44.9]} 16... Nd5 {[%clk 0:02:32.1]}
17. Nge4 {[%clk 0:02:19.1]} 17... Ng6 {[%clk 0:02:16.9]} 18. Rad1 {[%clk
0:02:09]} 18... Ngf4 {[%clk 0:02:09.3]} 19. Qg3 {[%clk 0:02:08.1]} 19... Nxc3
{[%clk 0:02:10]} 20. Nxc3 {[%clk 0:02:01]} 20... Nxg2 {[%clk 0:02:07.7]} 21. d5
{[%clk 0:01:55.9]} 21... Bd6 {[%clk 0:01:39.9]} 22. Qxg2 {[%clk 0:01:55.2]} 1-0

[Event "*** Titled Tuesday 3|2 Blitz"]
[Site "Chess.com"]
[Date "2015.10.06"]
[Round "3"]
[White "tac49"]
[Black "FairChess_on_YouTube"]
[Result "0-1"]
[WhiteElo "2464"]
[BlackElo "2713"]
[TimeControl "180+2"]
[EndTime "11:33:46 PDT"]
[Termination "FairChess_on_YouTube won by resignation"]

1. e4 {[%clk 0:02:57.3]} 1... c5 {[%clk 0:03:00.8]} 2. Nf3 {[%clk 0:02:57]} 2...
d6 {[%clk 0:03:02.2]} 3. d4 {[%clk 0:02:56.5]} 3... cxd4 {[%clk 0:03:03.3]} 4.
Nxd4 {[%clk 0:02:57.5]} 4... Nf6 {[%clk 0:03:04.6]} 5. Nc3 {[%clk 0:02:58.2]}
5... a6 {[%clk 0:03:06.1]} 6. h3 {[%clk 0:02:58.1]} 6... g6 {[%clk 0:03:04.6]}
7. Be3 {[%clk 0:02:56.4]} 7... Bg7 {[%clk 0:03:05.7]} 8. Bc4 {[%clk 0:02:55]}
8... O-O {[%clk 0:03:02.4]} 9. O-O {[%clk 0:02:54.9]} 9... b5 {[%clk 0:03:02.1]}
10. Bd5 {[%clk 0:02:50.2]} 10... Nxd5 {[%clk 0:03:03.1]} 11. Nxd5 {[%clk
0:02:43.7]} 11... Bb7 {[%clk 0:03:04]} 12. Bg5 {[%clk 0:02:31.5]} 12... Re8
{[%clk 0:02:54.5]} 13. a4 {[%clk 0:02:31.3]} 13... h6 {[%clk 0:02:49]} 14. Bh4
{[%clk 0:02:12.6]} 14... g5 {[%clk 0:02:46.6]} 15. Bg3 {[%clk 0:02:13.5]} 15...
e6 {[%clk 0:02:46.8]} 16. Ne3 {[%clk 0:02:06]} 16... Nc6 {[%clk 0:02:37]} 17.
Nxc6 {[%clk 0:01:52]} 17... Bxc6 {[%clk 0:02:37.9]} 18. Qh5 {[%clk 0:01:42.6]}
18... Bxe4 {[%clk 0:02:34.3]} 19. axb5 {[%clk 0:01:11.4]} 19... axb5 {[%clk
0:02:32.7]} 20. Ng4 {[%clk 0:01:03.1]} 20... Bg6 {[%clk 0:02:26.2]} 21. Nxh6+
{[%clk 0:00:53.2]} 21... Kh7 {[%clk 0:02:27.3]} 22. Nxf7+ {[%clk 0:00:43.9]}
22... Bxh5 {[%clk 0:02:27.2]} 23. Nxd8 {[%clk 0:00:41]} 23... Rexd8 {[%clk
0:02:27.6]} 0-1